Cogmind - Beta 14 @@@ ROGUE MODE // 2024.11.21 @ 01:44:44 Player: akira Result: Self-destructed Performance ------------- Evolutions (1) 500 Regions Visited (2) 400 Robots Destroyed (16) 80 Value Destroyed (486) 486 Prototype IDs (0) 0 Alien Tech Used (0) 0 Bonus (0) 0 TOTAL SCORE: 1466 Bonus ------- None Cogmind --------- Core Integrity 360/400 Matter 238/300 Energy 250/250 System Corruption 0% Temperature Cool (0) Movement Walking (120) Location -9/Materials Parts ------- > --- POWER (1) -------- Ion Engine > --- PROPULSION (4) --- Aluminum Leg Aluminum Leg Aluminum Leg Aluminum Leg > --- UTILITY (2) ------ Small Storage Unit Hacking Suite > --- WEAPON (2) ------- Grenade Launcher > --- INVENTORY (8) ---- Ion Engine Aluminum Leg Aluminum Leg Aluminum Leg Structural Scanner Visual Processing Unit Sensor Array Signal Interpreter Peak State ------------ > --- POWER ------------ Ion Engine > --- PROPULSION ------- Aluminum Leg Aluminum Leg Aluminum Leg Aluminum Leg > --- UTILITY ---------- Small Storage Unit Hacking Suite > --- WEAPON ----------- Grenade Launcher > --- INVENTORY -------- Ion Engine Aluminum Leg Structural Scanner Visual Processing Unit Sensor Array Signal Interpreter [Rating: 10] Favorites ----------- Power Ion Engine Engine Ion Engine Propulsion Aluminum Leg Leg Aluminum Leg Utility Small Storage Unit Device Structural Scanner Storage Small Storage Unit Hackware Hacking Suite Weapon Assault Rifle Energy Gun Small Laser Ballistic Gun Assault Rifle Launcher Grenade Launcher Special Weapon Mining Laser Special Melee Weapon Datajack Build | -11 -10 -9 ------- Run | Yrd Mat Mat Slots Evolved 2 | . . 2 Power . | . . . Propulsion 2 | . . 2 Utility . | . . . Weapon . | . . . Parts Attached 22 | 5 15 2 Power 4 | 1 3 . Engine 4 | 1 3 . Core . | . . . Reactor . | . . . Propulsion 9 | 2 5 2 Treads . | . . . Leg 9 | 2 5 2 Wheel . | . . . Hover . | . . . Flight . | . . . Utility 3 | 1 2 . Device 1 | . 1 . Storage 1 | 1 . . Processor . | . . . Hackware 1 | . 1 . Protection . | . . . Artifact . | . . . Weapon 6 | 1 5 . Energy Gun 1 | . 1 . Energy Cannon . | . . . Ballistic Gun 2 | 1 1 . Ballistic Cannon . | . . . Launcher 1 | . 1 . Special Weapon 1 | . 1 . Impact Weapon . | . . . Slashing Weapon . | . . . Piercing Weapon . | . . . Special Melee Weapon 1 | . 1 . Unidentified Prototypes . | . . . Parts Lost 6 | . 6 . Power 1 | . 1 . Propulsion 2 | . 2 . Utility . | . . . Weapon 3 | . 3 . Highest Loss Streak 5 | . 5 . To Critical Strikes . | . . . Average Slot Usage (%) 84 | . 84 88 Engine 11 | . 12 11 Leg 29 | . 25 44 Device 3 | . 3 . Storage 13 | . 14 11 Hackware 10 | . 9 11 Energy Gun 3 | . 4 . Ballistic Gun 6 | . 7 . Launcher 3 | . 1 11 Special Melee Weapon 2 | . 3 . Peak Build Rating 10 | 5 9 10 Average Rating 7 | 4 7 9 On Entrance 4 | . 5 8 Naked Turns . | . . . Heaviest Build 14 | 12 14 13 Greatest Support 40 | 20 20 40 Greatest Overweight (x) 1 | . 1 . Average Overweight (x) . | . . . Largest Inventory Capacity 8 | 8 8 8 Average Capacity 7 | 7 8 8 Most Carried 8 | 7 8 8 Average Carried 7 | 4 7 7 Final Capacity 8 | 8 8 8 Final Carried 8 | 7 8 8 Class Distribution -------------------- 62% | Mutant 37% | Scavenger-Mutant Dominant Class ---------------- Mutant | -10/Materials Scavenger-Mutant | -9/Materials Resources | -11 -10 -9 ----------- Run | Yrd Mat Mat Matter Collected 473 | 234 230 9 Remotely . | . . . Salvage Created 435 | . 393 42 Parts 33 | . 29 4 Haulers Intercepted . | . . . Recyclers Shooed . | . . . Parts Field Recycled . | . . . Retrieved Matter . | . . . Parts Self-Destructed . | . . . Prevented . | . . . Kills | -11 -10 -9 ------- Run | Yrd Mat Mat Combat Hostiles Destroyed 14 | . 11 3 Guns 7 | . 7 . Cannons 1 | . 1 . AOE 6 | . 3 3 Classes Destroyed 4 | . 4 . Operator 1 | . 1 . Watcher 1 | . 1 . Swarmer 2 | . 2 . Grunt 12 | . 9 3 Best Kill Streak 3 | . 3 3 Combat Bots Only 3 | . 3 3 Max Kills in Single Turn 3 | . 3 2 Gunslinging . | . . . Exploded 3 | . 3 2 Melee . | . . . Uniques/NPCs Destroyed . | . . . Combat | -11 -10 -9 -------- Run | Yrd Mat Mat Hostile Shots Fired 149 | . 119 30 Missed 46 | . 30 16 Damage Taken 1056 | . 917 139 Core 280 | . 240 40 Absorbed by Shields . | . . . Core Remaining (%) 52 | 100 4 . Volleys Fired 54 | . 49 5 Largest 1 | . 1 1 Hottest 100 | . 100 30 Shots Fired 54 | . 49 5 Gun 44 | . 44 . Cannon . | . . . Launcher 7 | . 2 5 Special 3 | . 3 . Kinetic 25 | . 25 . Thermal 22 | . 22 . Explosive 7 | . 2 5 Electromagnetic . | . . . Robot Hit Streak 5 | . 5 2 Robot Miss Streak 3 | . 3 1 Penetration Max . | . . . Secondary Targets . | . . . Shots Hit Robots 37 | . 35 2 Core Hits 27 | . 22 5 Critical Kills . | . . . Critical Parts Destroyed . | . . . Critical Strikes . | . . . Melee Attacks 5 | . 5 . Impact . | . . . Slashing . | . . . Piercing . | . . . Sneak Attacks 2 | . 2 . Combat Hostiles . | . . . Follow-up Attacks . | . . . Damage Inflicted 798 | . 495 303 Guns 348 | . 348 . Cannons . | . . . Explosions 402 | . 99 303 Melee . | . . . Ramming . | . . . Kinetic 197 | . 197 . Thermal 199 | . 199 . Explosive 402 | . 99 303 Electromagnetic . | . . . Impact . | . . . Slashing . | . . . Piercing . | . . . Highest Corruption . | . . . Average Corruption . | . . . Corruption Purged . | . . . Corruption Blocked . | . . . Overload Shots . | . . . Overflow Damage 28 | . . 28 Projectiles . | . . . Explosions 28 | . . 28 Melee . | . . . Knockbacks . | . . . Impact . | . . . Kinetic . | . . . Secondary . | . . . Self-Inflicted Damage 23 | . 9 14 Shots 2 | . 1 1 Rammed . | . . . Targets Rammed . | . . . Kicked . | . . . Crushed . | . . . Highest Temperature 30 | . 30 . Average Temperature 12 | . 12 . Received Heat Transfer 285 | . 267 18 Siege Activations . | . . . Robots Corrupted . | . . . Combat Hostiles . | . . . Parts Fried . | . . . Impact Corruptions . | . . . Robots Melted . | . . . Combat Hostiles . | . . . Parts Melted 1 | . 1 . Heat Transferred 450 | . 450 . Parts Sabotaged . | . . . Parts Stolen . | . . . Parts Stripped . | . . . Power Chain Reactions . | . . . Alert | -11 -10 -9 ------- Run | Yrd Mat Mat Peak Influence 236 | . 182 236 Initial 69 | . . 69 Average 107 | . 107 157 Maximum Alert Level 1 | . . 1 Low Security (%) 95 | 100 100 72 Level 1 4 | . . 27 Level 2 . | . . . Level 3 . | . . . Level 4 . | . . . Level 5 . | . . . High Security . | . . . Max Security . | . . . Squads Dispatched 3 | . 3 . Investigation 1 | . 1 . Extermination . | . . . Reinforcement 2 | . 2 . Assault . | . . . Garrison . | . . . Intercept . | . . . Searches Triggered . | . . . Construction Impeded . | . . . Haulers Reinforced . | . . . Active Scanning Responses . | . . . Cargo Convoy Interrupts . | . . . Stealth | -11 -10 -9 --------- Run | Yrd Mat Mat Distress Signals 3 | . 1 2 Communications Jammed . | . . . Distress Signals . | . . . Times Spotted 28 | . 17 11 Peak Tracking Total 8 | . 4 8 Tactical Retreats 2 | . 1 1 Traps | -11 -10 -9 ------- Run | Yrd Mat Mat Traps Triggered 2 | . 2 . Indirectly . | . . . Trap Hack Attempts . | . . . Triggered . | . . . Disarmed . | . . . Reprogrammed . | . . . Reused . | . . . Traps Extracted . | . . . Installed . | . . . Triggered . | . . . Machines | -11 -10 -9 ---------- Run | Yrd Mat Mat Machines Disabled . | . . . Max in Single Turn . | . . . Machines Repaired . | . . . Machines Dismantled . | . . . Machines Sabotaged . | . . . Overloaded Fab Kills . | . . . Hacking | -11 -10 -9 --------- Run | Yrd Mat Mat Machines Accessed 1 | . . 1 Terminals 1 | . . 1 Fabricators . | . . . Repair Stations . | . . . Recycling Units . | . . . Scanalyzers . | . . . Garrison Access . | . . . Total Hacks 1 | . . 1 Successful . | . . . Failed 1 | . . 1 Catastrophic . | . . . Database Lockouts . | . . . Manual 1 | . . 1 Terminals 1 | . . 1 Fabricators . | . . . Repair Stations . | . . . Recycling Units . | . . . Scanalyzers . | . . . Garrison Access . | . . . Terminal Hacks . | . . . Fabricator Hacks . | . . . Repair Station Hacks . | . . . Recycling Unit Hacks . | . . . Scanalyzer . | . . . Garrison Access Hacks . | . . . Unauthorized Hacks . | . . . Terminals . | . . . Fabricators . | . . . Repair Stations . | . . . Recycling Units . | . . . Scanalyzers . | . . . Garrison Access . | . . . Data Cores Recovered . | . . . Used . | . . . Hacking Detections 1 | . . 1 Full Trace Events . | . . . Feedback Events . | . . . Feedback Blocked . | . . . Robot Schematics Acquired . | . . . Robots Built . | . . . Authchips . | . . . Time . | . . . Total Robot Build Rating . | . . . Part Schematics Acquired . | . . . Parts Built . | . . . Authchips . | . . . Time . | . . . Total Part Build Rating . | . . . Parts Repaired . | . . . Time . | . . . Parts Recycled . | . . . Recycled Matter . | . . . Retrieved Matter . | . . . Retrieved Components . | . . . Parts Scanalyzed . | . . . Part Schematics Acquired . | . . . Parts Damaged . | . . . Bothacking | -11 -10 -9 ------------ Run | Yrd Mat Mat Used RIF Installer . | . . . Robots Hacked 1 | . 1 . Non-combat 1 | . 1 . Combat . | . . . Robot Hacks Applied 1 | . 1 . no_distress 1 | . 1 . Relay Couplers Released . | . . . Fabnet Peak Effective % . | . . . Robots Rewired . | . . . Allies Hacked . | . . . Hacks Repelled . | . . . Allies | -11 -10 -9 -------- Run | Yrd Mat Mat Total Allies . | . . . Largest Group . | . . . Highest-Rated Group . | . . . Highest-Rated Ally . | . . . Total Orders . | . . . Ally Attacks . | . . . Total Damage . | . . . Kills . | . . . Allies Corrupted . | . . . Allies Melted . | . . . Intel | -11 -10 -9 ------- Run | Yrd Mat Mat Robot Analysis Total . | . . . Derelict Logs Recovered . | . . . Drone Launches . | . . . Drone Recoveries . | . . . Exploration | -11 -10 -9 ------------- Run | Yrd Mat Mat Turns Passed 1007 | 80 752 175 Spaces Moved 655 | 60 471 124 Core 12 | 12 . . Treads . | . . . Legs 643 | 48 471 124 Wheels . | . . . Hover . | . . . Flight . | . . . Fastest Speed 50 | 50 120 120 Average Speed 120 | 106 121 120 Slowest Speed 190 | 120 190 120 Overloaded Moves . | . . . Propulsion Burnouts . | . . . Robots Hopped . | . . . Cave-ins Triggered . | . . . Exploration Rate (%) 29 | 3 67 17 Regions Visited 2 Branch Regions . Pre-discovered Areas . | . . . Known Exits Taken . | . . . Unknown Exits Taken 2 | 1 1 . Scrap Searched . | . . . Spaces Dug . | . . . Terrain Destroyed 51 | . 10 41 Melee . | . . . Projectile 1 | . 1 . AOE 50 | . 9 41 Terrain Rammed . | . . . Walls Destroyed . | . . . Machines Disabled . | . . . Actions | -11 -10 -9 --------- Run | Yrd Mat Mat Total 814 | 76 593 145 Wait 41 | . 29 12 Move 653 | 59 470 124 Hop . | . . . Pick Up 31 | 12 17 2 Fast Attach . | . . . Attach 16 | 5 9 2 Detach . | . . . Swap 6 | . 6 . Drop 8 | . 8 . Fire 54 | . 49 5 Melee 5 | . 5 . Ram . | . . . Kick . | . . . Crush . | . . . Escape Stasis . | . . . Rewire . | . . . Trap . | . . . Miscellaneous . | . . . Route ------- -11/Scrapyard -10/Materials (discovered 3 exits: *Mat x2 / [*Min]) -9/Materials (discovered 1 exit: [*Min]) History --------- Turn | Location | Event 28 | -11/Scrapyard | Discovered new exit (range 16) 81 | -11/Scrapyard | Entered Materials 324 | -10/Materials | Discovered new exit (range 7) 329 | -10/Materials | Build established: Mutant 378 | -10/Materials | Discovered new exit (range 12) 502 | -10/Materials | Core integrity fell below 50% 546 | -10/Materials | Lost 5 parts (1p1n3w) 597 | -10/Materials | Core integrity fell below 20% 634 | -10/Materials | Discovered new exit (range 9) 833 | -10/Materials | Entered another Materials area 833 | -9/Materials | Evolved 2 slots: Propulsion x2 953 | -9/Materials | Discovered new exit (range 16) 1008 | -9/Materials | Self-destructed Last Messages --------------- 00876_ Destroyed Sml. Laser. 00876_ G-34 Mercenary destroyed. 00884_ The unstable cave ceiling collapses. 00895_ Acquired Aluminum Leg. 00897_ K-01 Serf collects debris. 00897_ Acquired 9 matter. 00898_ The unstable cave ceiling collapses. 00899_ Acquired Aluminum Leg. 00908_ K-01 Serf collects debris. 00908_ R-06 Scavenger collects Ion Engine. 00920_ K-01 Serf collects debris. 00927_ Connecting with Terminal... 00927_ Current location identified: Materials 00942_ K-01 Serf cleans the Terminal. 00946_ K-01 Serf collects debris. 00948_ Connecting with Terminal... 00950_ K-01 Serf collects debris. 00953_ EXIT=FOUND 00986_ K-01 Serf collects debris. 00995_ W-16 Scout sends out distress signal. Map ----- +----------------------------------------------------+ | ?????????????????????????????????????????????????? | | ?????????????????????????????????????????????????? | | ?????????????????????????????????????????????????? | | ?????????????????????????????????????????????????? | | ?????????????????????????????????????????????????? | | ?????????????????????????????????????????????????? | | ?????????????????????????????????????????????????? | | ?????????????????????????????????????????????????? | | ?????????????????????????????????????????????????? | | ?????????????????????????????????????????????????? | | ?????????????????????????????????????????????????? | | ?????????????????????????????????????????????????? | | ?????????????????????????????????????????????????? | | ?????????????????????????????????????????????????? | | ?????????????????????????????????????????????????? | | ?????????????????????????????????????????????????? | | ?????????????????????????????????????????????????? | | ?????????????????????????????????????????????????? | | ?????????????????????????????????????????????????? | | ???????????????????###############???????????????? | | ???????????????????# #???????????????? | | ???????????????????# #???????????????? | | ???????????????????# """ """ """ #???????????????? | | ???????????????????# """ """ """ #???????????????? | | ???????????????????# """ """ """ #???????????????? | | ???????????????????# @s #???????????????? | | ???????????????????########/######???????????????? | | ?????????????????????????# #####???????????????? | | ?????????????????????????# +???????????????? | | ?????????????????????????# #####???????????????? | | ?????????????????????????# #???????????????????? | | ?????????????????????????# #???????????????????? | | ?????????????????????????# #########+##????##### | | ?????????????????????????# #????# | | ?????????????????????????# #????# "" | | ?????????????????????????#" #????# "" | | ?????????????????????????#T #????# "" | | ?????????????????????????#" #????# | | ?????????????????????????# #????# "" | | ???????????????????????? / #????# "" | | ??????????????????????? # #????# "" | | ??????????????????????#### ########## | | ????????????????????????# # ##+### | | ????????????????????????# | | ????????????????????????# """ < | | ????????????????????????# """"" | | ????????????????????????# """"" ##" "###### | | ????????????????????????# """"" ##" !"! "#???? | | ????????????????????????# """ ##"""""""#??? | | ???????????????????????? ? ##########??# ? | +----------------------------------------------------+ Best States ------------- Heat Dissipation 28 Energy Generation 10 Energy Capacity 250 Matter Stores 300 Matter Capacity 300 Sight Range 16 Terrain Scan Density 10 Evasion (%) 55 Offensive Hacking 10 Item Schematics ----------------- None Robot Schematics ------------------ None Fabricated ------------ Nothing Alien Tech Used ----------------- None Achievements -------------- None Challenges ------------ None Game ------ Seed HypercooledPointyMantle Manual? 0 Play Time 00:16:15 Cumulative 7.7 hours Start 2024.11.21 @ 01:29:06 End 2024.11.21 @ 01:44:44 Sessions 1 Manual Loads 0 Difficulty Rogue Special Mode None Game No. 13 Rogue 13 Adventurer 0 Explorer 0 Win Type - Total 0 Types 0/0/0/0/0/0/0/0/0 Lore% 2 Gallery% 12 Achievement% 14 Wizard Run 0 Options --------- Layout 1 ASCII 0 Keyboard 0 Movement Mouse Keybinds 0 Fullscreen 1 Font 16/SmallcapsGlow Map View 55x38 Zoom Use 5% Tactical HUD 1 Map Filters NONE Filters NONE Steam 1 RUN: a9aeb4bc-80e7-4b77-a3f0-685a2b7042da